Cogmind - Beta 13 @@@ ROGUE MODE // 2024.04.15 @ 13:24:23 Player: Thaleia Result: Destroyed by G-34 Mercenary with Small Laser Performance ------------- Evolutions (0) 0 Regions Visited (1) 200 Robots Destroyed (8) 40 Value Destroyed (311) 311 Prototype IDs (0) 0 Alien Tech Used (0) 0 Bonus (0) 0 TOTAL SCORE: 551 Bonus ------- None Cogmind --------- Core Integrity 0/250 Matter 280/300 Energy 158/160 System Corruption 0% Temperature Cool (8) Movement Core (450) Ox8 Location -10/Materials Parts ------- > --- POWER (1) -------- Light Nuclear Core > --- PROPULSION (2) --- (None) > --- UTILITY (2) ------ Large Storage Unit Seismic Detector > --- WEAPON (2) ------- Small Laser > --- INVENTORY (15) --- Ion Engine Aluminum Leg Small Storage Unit Huge Storage Unit High-capacity Matter Pod (37) Light Armor Plating Grenade Launcher Peak State ------------ > --- POWER ------------ Light Nuclear Core > --- PROPULSION ------- Aluminum Leg Aluminum Leg > --- UTILITY ---------- Small Storage Unit Light Armor Plating > --- WEAPON ----------- Assault Rifle > --- INVENTORY -------- Ion Engine Aluminum Leg Grenade Launcher [Rating: 8] Favorites ----------- Power Light Nuclear Core Engine Ion Engine Power Core Light Nuclear Core Propulsion Aluminum Leg Leg Aluminum Leg Utility Small Storage Unit Device Seismic Detector Storage Small Storage Unit Protection Light Armor Plating Weapon Assault Rifle Energy Gun Small Laser Ballistic Gun Assault Rifle Build | -11 -10 ------- Run | Yrd Mat Slots Evolved . | . . Power . | . . Propulsion . | . . Utility . | . . Weapon . | . . Parts Attached 16 | 5 11 Power 3 | 1 2 Engine 1 | 1 . Core 2 | . 2 Reactor . | . . Propulsion 6 | 2 4 Treads . | . . Leg 6 | 2 4 Wheel . | . . Hover . | . . Flight . | . . Utility 4 | 1 3 Device 1 | . 1 Storage 2 | 1 1 Processor . | . . Hackware . | . . Protection 1 | . 1 Artifact . | . . Weapon 3 | 1 2 Energy Gun 1 | . 1 Energy Cannon . | . . Ballistic Gun 2 | 1 1 Ballistic Cannon . | . . Launcher . | . . Special Weapon . | . . Impact Weapon . | . . Slashing Weapon . | . . Piercing Weapon . | . . Special Melee Weapon . | . . Unidentified Prototypes . | . . Parts Lost 7 | . 7 Power 2 | . 2 Propulsion 4 | . 4 Utility . | . . Weapon 1 | . 1 Highest Loss Streak 4 | . 4 To Critical Strikes . | . . Average Slot Usage (%) 72 | . 72 Engine 3 | . 3 Core 9 | . 9 Leg 26 | . 26 Device 2 | . 2 Storage 14 | . 14 Protection 2 | . 2 Ballistic Gun 13 | . 13 Naked Turns . | . . Heaviest Build 28 | 12 28 Greatest Support 20 | 20 20 Greatest Overweight (x) 8 | . 8 Average Overweight (x) . | . . Largest Inventory Capacity 15 | 8 15 Average Capacity 8 | 7 8 Most Carried 7 | 1 7 Average Carried 3 | . 3 Final Capacity 15 | 8 15 Final Carried 7 | 1 7 Class Distribution -------------------- 100% | Mutant Dominant Class ---------------- Mutant | -10/Materials Resources | -11 -10 ----------- Run | Yrd Mat Matter Collected 494 | 232 262 Remotely . | . . Salvage Created 373 | . 373 Parts 21 | . 21 Haulers Intercepted . | . . Recyclers Shooed . | . . Parts Field Recycled . | . . Retrieved Matter . | . . Parts Self-Destructed . | . . Prevented . | . . Kills | -11 -10 ------- Run | Yrd Mat Combat Hostiles Destroyed 8 | . 8 Guns 8 | . 8 Classes Destroyed 1 | . 1 Grunt 8 | . 8 Best Kill Streak 4 | . 4 Combat Bots Only 4 | . 4 Max Kills in Single Turn 1 | . 1 Gunslinging . | . . Exploded . | . . Melee . | . . Uniques/NPCs Destroyed . | . . Combat | -11 -10 -------- Run | Yrd Mat Hostile Shots Fired 102 | . 102 Missed 18 | . 18 Damage Taken 1059 | . 1059 Core 254 | . 254 Absorbed by Shields . | . . Regen/Repaired (Parts) 81 | . 81 Core Remaining (%) 100 | 100 . Volleys Fired 54 | . 54 Largest 1 | . 1 Hottest 40 | . 40 Shots Fired 54 | . 54 Gun 54 | . 54 Cannon . | . . Launcher . | . . Special . | . . Kinetic 53 | . 53 Thermal 1 | . 1 Explosive . | . . Electromagnetic . | . . Robot Hit Streak 10 | . 10 Robot Miss Streak 1 | . 1 Penetration Max . | . . Secondary Targets . | . . Shots Hit Robots 37 | . 37 Core Hits 18 | . 18 Critical Kills . | . . Critical Parts Destroyed . | . . Critical Strikes . | . . Melee Attacks . | . . Impact . | . . Slashing . | . . Piercing . | . . Sneak Attacks . | . . Combat Hostiles . | . . Follow-up Attacks . | . . Damage Inflicted 462 | . 462 Guns 457 | . 457 Cannons . | . . Explosions . | . . Melee . | . . Ramming 5 | . 5 Kinetic 447 | . 447 Thermal 10 | . 10 Explosive . | . . Electromagnetic . | . . Impact . | . . Slashing . | . . Piercing . | . . Highest Corruption . | . . Average Corruption . | . . Corruption Purged . | . . Corruption Blocked . | . . Overload Shots . | . . Overflow Damage . | . . Projectiles . | . . Explosions . | . . Melee . | . . Knockbacks . | . . Impact . | . . Kinetic . | . . Secondary . | . . Self-Inflicted Damage . | . . Shots . | . . Rammed 2 | . 2 Targets Rammed 5 | . 5 Kicked 3 | . 3 Crushed . | . . Highest Temperature 17 | . 17 Average Temperature 7 | . 7 Received Heat Transfer 618 | . 618 Siege Activations . | . . Robots Corrupted . | . . Combat Hostiles . | . . Parts Fried . | . . Impact Corruptions . | . . Robots Melted . | . . Combat Hostiles . | . . Parts Melted . | . . Heat Transferred 25 | . 25 Parts Sabotaged . | . . Parts Stolen . | . . Parts Stripped . | . . Power Chain Reactions . | . . Alert | -11 -10 ------- Run | Yrd Mat Peak Influence 95 | . 95 Initial . | . . Average 32 | . 36 Maximum Alert Level . | . . Low Security (%) 100 | 100 100 Level 1 . | . . Level 2 . | . . Level 3 . | . . Level 4 . | . . Level 5 . | . . High Security . | . . Max Security . | . . Squads Dispatched 1 | . 1 Investigation 1 | . 1 Extermination . | . . Reinforcement . | . . Assault . | . . Garrison . | . . Intercept . | . . Searches Triggered . | . . Construction Impeded . | . . Haulers Reinforced . | . . Active Scanning Responses . | . . Cargo Convoy Interrupts . | . . Stealth | -11 -10 --------- Run | Yrd Mat Distress Signals . | . . Communications Jammed . | . . Distress Signals . | . . Times Spotted 13 | . 13 Peak Tracking Total 5 | . 5 Tactical Retreats . | . . Traps | -11 -10 ------- Run | Yrd Mat Traps Triggered . | . . Indirectly . | . . Trap Hack Attempts . | . . Triggered . | . . Disarmed . | . . Reprogrammed . | . . Reused . | . . Traps Extracted . | . . Installed . | . . Triggered . | . . Machines | -11 -10 ---------- Run | Yrd Mat Machines Disabled . | . . Max in Single Turn . | . . Machines Repaired . | . . Machines Dismantled . | . . Machines Sabotaged . | . . Overloaded Fab Kills . | . . Hacking | -11 -10 --------- Run | Yrd Mat Machines Accessed 5 | . 5 Terminals 4 | . 4 Fabricators . | . . Repair Stations 1 | . 1 Recycling Units . | . . Scanalyzers . | . . Garrison Access . | . . Total Hacks 14 | . 14 Successful 8 | . 8 Failed 6 | . 6 Catastrophic . | . . Database Lockouts . | . . Manual 3 | . 3 Terminals 12 | . 12 Fabricators . | . . Repair Stations 2 | . 2 Recycling Units . | . . Scanalyzers . | . . Garrison Access . | . . Terminal Hacks 5 | . 5 Emergency Access Points 2 | . 2 Locate Traps 2 | . 2 Reinforcement Status 1 | . 1 Fabricator Hacks . | . . Repair Station Hacks 2 | . 2 Scan Component 1 | . 1 Repair 1 | . 1 Recycling Unit Hacks . | . . Scanalyzer . | . . Garrison Access Hacks . | . . Unauthorized Hacks 1 | . 1 Terminals 1 | . 1 Botnet 1 | . 1 Fabricators . | . . Repair Stations . | . . Recycling Units . | . . Scanalyzers . | . . Garrison Access . | . . Data Cores Recovered . | . . Used . | . . Hacking Detections 4 | . 4 Full Trace Events 1 | . 1 Feedback Events . | . . Feedback Blocked . | . . Robot Schematics Acquired . | . . Robots Built . | . . Authchips . | . . Time . | . . Total Robot Build Rating . | . . Part Schematics Acquired . | . . Parts Built . | . . Authchips . | . . Time . | . . Total Part Build Rating . | . . Parts Repaired 1 | . 1 Time 26 | . 26 Parts Recycled . | . . Recycled Matter . | . . Retrieved Matter . | . . Retrieved Components . | . . Parts Scanalyzed . | . . Part Schematics Acquired . | . . Parts Damaged . | . . Bothacking | -11 -10 ------------ Run | Yrd Mat Used RIF Installer . | . . Robots Hacked . | . . Non-combat . | . . Combat . | . . Robot Hacks Applied . | . . Relay Couplers Released . | . . Fabnet Peak Effective % . | . . Robots Rewired . | . . Allies Hacked . | . . Hacks Repelled . | . . Allies | -11 -10 -------- Run | Yrd Mat Total Allies . | . . Largest Group . | . . Highest-Rated Group . | . . Highest-Rated Ally . | . . Total Orders . | . . Ally Attacks . | . . Total Damage . | . . Kills . | . . Allies Corrupted . | . . Allies Melted . | . . Intel | -11 -10 ------- Run | Yrd Mat Robot Analysis Total . | . . Derelict Logs Recovered . | . . Drone Launches . | . . Drone Recoveries . | . . Exploration | -11 -10 ------------- Run | Yrd Mat Turns Passed 865 | 76 789 Spaces Moved 522 | 61 461 Core 14 | 7 7 Treads . | . . Legs 508 | 54 454 Wheels . | . . Hover . | . . Flight . | . . Fastest Speed 50 | 50 120 Average Speed 123 | 111 124 Slowest Speed 450 | 120 450 Overloaded Moves . | . . Propulsion Burnouts . | . . Robots Hopped . | . . Cave-ins Triggered . | . . Exploration Rate (%) 31 | 4 59 Regions Visited 1 Branch Regions . Pre-discovered Areas . | . . Known Exits Taken . | . . Unknown Exits Taken 1 | 1 . Scrap Searched . | . . Spaces Dug . | . . Terrain Destroyed . | . . Melee . | . . Projectile . | . . AOE . | . . Terrain Rammed . | . . Walls Destroyed . | . . Machines Disabled . | . . Actions | -11 -10 --------- Run | Yrd Mat Total 676 | 66 610 Wait 71 | . 71 Move 521 | 60 461 Hop . | . . Pick Up 7 | 1 6 Fast Attach 11 | 5 6 Attach 1 | . 1 Detach . | . . Swap 4 | . 4 Drop 2 | . 2 Fire 54 | . 54 Melee . | . . Ram 2 | . 2 Kick 3 | . 3 Crush . | . . Escape Stasis . | . . Rewire . | . . Trap . | . . Miscellaneous . | . . Route ------- -11/Scrapyard -10/Materials (discovered 1 exit: [*Mat]) History --------- Turn | Location | Event 4 | -11/Scrapyard | Discovered new exit (range 15) 77 | -11/Scrapyard | Entered Materials 330 | -10/Materials | Lost 3 parts (1p2n) 342 | -10/Materials | Build established: Mutant 472 | -10/Materials | Discovered new exit (range 11) 523 | -10/Materials | Repaired Assault Rifle 807 | -10/Materials | Core integrity fell below 50% 838 | -10/Materials | Core integrity fell below 20% 866 | -10/Materials | Destroyed by G-34 Mercenary with Small Laser Last Messages --------------- 00819_ G-34 Mercenary destroyed. 00821_ Lgt. Nuclear Core destroyed. 00823_ Acquired 44 matter. 00823_ K-01 Serf collects debris. 00829_ R-06 Scavenger collects Ion Engine. 00829_ K-01 Serf cleans the Atomic Centrifuge. 00832_ Aluminum Leg destroyed. 00835_ G-47 Trooper destroyed. 00835_ Aluminum Leg destroyed. 00836_ Acquired 60 matter. 00836_ K-01 Serf cleans the Atomic Centrifuge. 00839_ G-34 Mercenary destroyed. 00839_ K-01 Serf collects debris. 00839_ K-01 Serf cleans the Atomic Centrifuge. 00845_ Acquired Lgt. Nuclear Core. 00848_ Assault Rifle destroyed. 00849_ K-01 Serf collects debris. 00850_ Slammed into K-01 Serf. 00864_ Acquired Sml. Laser. Map ----- +----------------------------------------------------+ | ?????????# #?########### | | ?????????# #?# # | | ?????????# #?# """ "# | | ????###### #?# """ T# | | ????# #### #?# """ "# | | ????# #####+#### #?# # | | ????# #???# ## #?# # | | ????# #???# ## #?# # | | ????# #???# ## #?# # | | ????# ##### ## #?#########+# | | ????# + ## #??????# | | #####+##### ## #??????# | | # # ## ######## | | # """ ###### # # ## | | # "T" #????# # # #? | | # #????# + """ # #? | | #####+###+####?# # """ + +? | | ????# #?# # """ # #? | | ????# """ #?#^# # #? | | ????# """ #?# ######## #? | | ????# """ #?# ?????? | | ????# #?# ?????? | | ????#! """ #?# ????? | | ????#!%[""" =#?# ????? | | ????#!==""" #?? ????? | | ????#@=* [ #?? ?????? | | ????#g###+###### ?? | | ????# ! % ?? | | ????# ??####### | | ????# """ ""?????????? | | ????#### """ ???????????? | | ???????# """?????????????? | | ???????# ????????????? | | ??????? ???????????? | | ??????? ??????????? | | ??????? ??????????? | | ??????? ########???????????? | | ??????? ???????????????????? | | ?????? ????????????????#+?? | | ?????? ????????????????# ?? | | ??????? ???????????????##+## | | ?????????????????????????# | | ?????????????????????????# | | ?????????????????????????# | | ?????????????????????????# | | ?????????????????????????# | | ?????????????????????????# | | ?????????????????????????# | | ?????????????????????????# | | ?????????????????????????# | +----------------------------------------------------+ Best States ------------- Heat Dissipation 25 Energy Generation 14 Energy Capacity 250 Matter Stores 300 Matter Capacity 300 Sight Range 16 Terrain Scan Density 10 Armor Coverage 150 Evasion (%) 55 Item Schematics ----------------- None Robot Schematics ------------------ None Fabricated ------------ Nothing Alien Tech Used ----------------- None Achievements -------------- None Challenges ------------ None Game ------ Seed GravitonMiniSheargun Manual? 0 Play Time 00:06:13 Cumulative 6.6 hours Start 2024.04.15 @ 13:17:38 End 2024.04.15 @ 13:24:23 Sessions 1 Manual Loads 0 Difficulty Rogue Special Mode None Game No. 19 Rogue 19 Adventurer 0 Explorer 0 Win Type - Total 0 Types 0/0/0/0/0/0/0/0/0 Lore% 7 Gallery% 10 Achievement% 11 Wizard Run 0 Options --------- Layout 1 ASCII 0 Keyboard 1 Movement Arrows Keybinds 0 Fullscreen 1 Font 32/Tamsyn Map View 50x40 Zoom Use 0% Tactical HUD 1 Map Filters NONE Filters NONE Steam 0 RUN: 85216ce5-0f4a-42e5-b480-6b3980137e32